fUSD/lending_fUSD_20240718
["ID","MTS","AMOUNT","RATE_DAILY","PERIOD"]
[332611299,1721344250274,-425.12,0.00026959,2]
[332611300,1721344250283,-425.12,0.00026959,2]
[332611301,1721344250292,-165.16,0.00026959,2]
[332611302,1721344250301,-529.43,0.00026959,2]
[332611303,1721344250310,-150.0,0.00026959,2]
[332611304,1721344250319,-150.0,0.00026959,2]
[332611305,1721344250328,-150.0,0.00026959,2]
[332611306,1721344250339,-971.76,0.00026959,2]
[332611307,1721344250348,-150.0,0.00026959,2]
[332611308,1721344250357,-1058.01,0.00026959,2]
[332611309,1721344250367,-165.16,0.00026959,2]
[332611310,1721344250377,-150.0,0.00026959,2]
[332611311,1721344250386,-150.0,0.00026959,2]
[332611312,1721344250395,-425.12,0.00026959,2]
[332611313,1721344250411,-529.43,0.00026959,2]
[332611314,1721344250421,-150.0,0.00026959,2]
[332611315,1721344250430,-150.0,0.00026959,2]
[332611316,1721344250440,-166.49,0.00026959,2]
[332611317,1721344250450,-425.12,0.00026959,2]
[332611318,1721344250462,-529.43,0.00026959,2]
[332611319,1721344250471,-150.0,0.00026959,2]
[332611320,1721344250483,-150.0,0.00026959,2]
[332611321,1721344250493,-150.0,0.00026959,2]
[332611322,1721344250503,-529.43,0.00026959,2]
[332611323,1721344250512,-425.12,0.00026959,2]
[332611324,1721344250522,-528.81,0.00026959,2]
[332611325,1721344250531,-425.12,0.00026959,2]
[332611326,1721344250541,-425.12,0.00026959,2]
[332611327,1721344250552,-240.58,0.00026959,2]
[332611328,1721344250561,-521.39285406,0.00026967,2]
[332611329,1721344250571,-150.0,0.00026986,2]
[332611330,1721344250802,-150.0,0.00026986,2]
[332611331,1721344250812,-150.0,0.00026986,2]
[332611332,1721344250821,-150.0,0.00026986,2]
[332611333,1721344250830,-150.0,0.00026986,2]
[332611334,1721344250840,-1063.01251185,0.00026987,2]
[332611335,1721344250849,-500.0,0.0002699,2]
[332611336,1721344250858,-500.0,0.0002699,2]
[332611337,1721344250868,-500.0,0.0002699,2]
[332611338,1721344250877,-500.0,0.0002699,2]
[332611339,1721344250886,-500.0,0.0002699,2]
[332611340,1721344250897,-500.0,0.0002699,2]
[332611341,1721344250906,-500.0,0.0002699,2]
[332611342,1721344250916,-500.0,0.0002699,2]
[332611343,1721344250926,-500.0,0.0002699,2]
[332611344,1721344250936,-500.0,0.0002699,2]
[332611345,1721344250946,-500.0,0.0002699,2]
[332611346,1721344250955,-500.0,0.0002699,2]
[332611347,1721344250967,-500.0,0.0002699,2]
[332611348,1721344250976,-290.84,0.0002699,2]
[332611349,1721344250986,-500.0,0.0002699,2]
[332611350,1721344250995,-771.66452821,0.00027,10]
[332611351,1721344251004,-52576.68863257,0.00027,7]
[332611352,1721344251014,-450.0,0.00027,2]
[332611353,1721344251024,-152.38095237,0.00027034,2]
[332611354,1721344251033,-587.88,0.00027036,2]
[332611355,1721344251042,-154.92997943,0.00027089,2]
[332611356,1721344251052,-2600.0,0.00027122,2]
[332611357,1721344251062,-2800.0,0.00027122,2]
[332611358,1721344251071,-348.705359,0.00027397,2]
[332611359,1721344251081,-150.0,0.00027397,2]
[332611360,1721344251090,-4263.15,0.00027397,10]
[332611361,1721344251100,-2600.0,0.0002767,2]
[332611362,1721344251109,-500.0,0.0002767,2]
[332611363,1721344251119,-900.0,0.0002767,2]
[332611364,1721344251130,-800.0,0.0002767,2]
[332611365,1721344251140,-211.59,0.00027714,2]
[332611366,1721344251149,-174.63,0.00027714,2]
[332611367,1721344251158,-153.33226061,0.00027827,2]
[332611368,1721344251167,-293.6149821,0.00027856,2]
[332611369,1721344251177,-1271.74200996,0.00027856,2]
[332611370,1721344251186,-1879.027848,0.000279,2]
[332611371,1721344251195,-350.0,0.000279,2]
[332611372,1721344251205,-355.49,0.00027918,2]
[332611373,1721344251216,-355.49,0.00027918,2]
[332611374,1721344251225,-355.22,0.00027918,2]
[332611375,1721344251235,-710.71,0.00027918,2]
[332611376,1721344251245,-206.0,0.0002794,2]
[332611377,1721344251256,-3395.46655206,0.00027945,3]
[332611378,1721344251265,-30000.00000099,0.00027956,4]
[332611379,1721344251275,-151.0,0.00027956,7]
[332611380,1721344251284,-151.0,0.00027956,7]
[332611381,1721344251293,-151.0,0.00027956,7]
[332611382,1721344251302,-151.0,0.00027956,7]
[332611383,1721344251312,-151.0,0.00027956,7]
[332611384,1721344251321,-151.0,0.00027956,7]
[332611385,1721344251330,-151.0,0.00027956,7]
[332611386,1721344251340,-347.768377,0.00027956,7]
[332611387,1721344251349,-151.0,0.00027956,7]
[332611388,1721344251358,-347.768377,0.00027956,7]
[332611389,1721344251368,-151.0,0.00027956,7]
[332611390,1721344251378,-151.0,0.00027956,7]
[332611391,1721344251387,-151.0,0.00027956,7]
[332611392,1721344251397,-152.42858912,0.0002798,2]
[332611393,1721344251408,-407.49180447,0.00027989,2]
[332611394,1721344251419,-151.0,0.00027999,7]
[332611395,1721344251428,-151.0,0.00027999,7]
[332611396,1721344251438,-151.0,0.00027999,7]
[332611397,1721344251447,-151.0,0.00027999,7]
[332611398,1721344251457,-151.0,0.00027999,7]
[332611399,1721344251467,-151.0,0.00027999,7]
[332611400,1721344251477,-151.0,0.00027999,2]
[332611401,1721344251486,-154.105399,0.00027999,7]
[332611402,1721344251496,-500.0,0.00027999,2]
[332611403,1721344251505,-642848.23494475,0.00028,2]
[332611404,1721344251515,-151.0,0.00028,7]
[332611405,1721344251524,-151.0,0.00028,7]
[332611406,1721344251533,-151.0,0.00028,7]
[332611407,1721344251543,-151.0,0.00028,7]
[332611408,1721344251553,-438.918624,0.00028,7]
[332611409,1721344251562,-614.334274,0.00028,7]
[332611410,1721344251571,-438.918624,0.00028,7]
[332611411,1721344251583,-151.0,0.00028,7]
[332611412,1721344251593,-151.0,0.00028,7]
[332611413,1721344251602,-265.973585,0.00028,7]
[332611414,1721344251612,-151.0,0.00028,7]
[332611415,1721344251621,-151.0,0.00028,7]
[332611416,1721344251631,-151.0,0.00028,7]
[332611417,1721344251641,-300.690123,0.00028,7]
[332611418,1721344251651,-151.0,0.00028,7]
[332611419,1721344251661,-151.0,0.00028,7]
[332611420,1721344251671,-151.0,0.00028,7]
[332611421,1721344251681,-151.0,0.00028,7]
[332611422,1721344251691,-152.795142,0.00028,7]
[332611423,1721344251700,-151.0,0.00028,7]
[332611424,1721344251710,-155.953756,0.00028,7]
[332611425,1721344251721,-156.11927,0.00028,7]
[332611426,1721344251730,-722.390544,0.00028,7]
[332611427,1721344251739,-722.390544,0.00028,7]
[332611428,1721344251750,-722.390544,0.00028,7]
[332611429,1721344251759,-722.390544,0.00028,7]
[332611430,1721344251769,-151.0,0.00028,7]
[332611431,1721344251779,-163.229368,0.00028,7]
[332611432,1721344251789,-151.0,0.00028,7]
[332611433,1721344251799,-151.0,0.00028,7]
[332611434,1721344251808,-151.0,0.00028,7]
[332611435,1721344251817,-151.0,0.00028,7]
[332611436,1721344251826,-151.0,0.00028,7]
[332611437,1721344251836,-151.0,0.00028,7]
[332611438,1721344251845,-151.0,0.00028,7]
[332611439,1721344251854,-151.0,0.00028,7]
[332611440,1721344251864,-151.0,0.00028,7]
[332611441,1721344251873,-151.0,0.00028,7]
[332611442,1721344251882,-151.0,0.00028,7]
[332611443,1721344251892,-151.0,0.00028,7]
[332611444,1721344251901,-2144.5338,0.00028,2]
[332611445,1721344251910,-151.0,0.00028,7]
[332611446,1721344251919,-151.0,0.00028,7]
[332611447,1721344251928,-151.0,0.00028,7]
[332611448,1721344251938,-151.0,0.00028,7]
[332611449,1721344251948,-151.0,0.00028,7]
[332611450,1721344251957,-151.0,0.00028,7]
[332611451,1721344251967,-151.0,0.00028,7]
[332611452,1721344251977,-169.727429,0.00028,7]
[332611453,1721344251986,-169.727429,0.00028,7]
[332611454,1721344251995,-151.0,0.00028,7]
[332611455,1721344252005,-151.0,0.00028,7]
[332611456,1721344252014,-151.0,0.00028,7]
[332611457,1721344252024,-151.0,0.00028,7]
[332611458,1721344252033,-1470.6465,0.00028,2]
[332611459,1721344252042,-158.939888,0.00028,7]
[332611460,1721344252051,-532.646494,0.00028,7]
[332611461,1721344252061,-532.646494,0.00028,7]
[332611462,1721344252070,-151.0,0.00028,7]
[332611463,1721344252079,-157.25567,0.00028,7]
[332611464,1721344252089,-151.0,0.00028,7]
[332611465,1721344252098,-151.0,0.00028,7]
[332611466,1721344252107,-205.712664,0.00028,7]
[332611467,1721344252117,-151.0,0.00028,7]
[332611468,1721344252126,-151.0,0.00028,7]
[332611469,1721344252135,-151.0,0.00028,7]
[332611470,1721344252145,-151.0,0.00028,7]
[332611471,1721344252154,-151.0,0.00028,7]
[332611472,1721344252164,-512.0321,0.00028,2]
[332611473,1721344252174,-151.0,0.00028,7]
[332611474,1721344252183,-151.0,0.00028,7]
[332611475,1721344252193,-151.0,0.00028,7]
[332611476,1721344252202,-211.695323,0.00028,7]
[332611477,1721344252212,-211.695323,0.00028,7]
[332611478,1721344252222,-211.695323,0.00028,7]
[332611479,1721344252231,-211.695323,0.00028,7]
[332611480,1721344252241,-151.0,0.00028,7]
[332611481,1721344252250,-151.0,0.00028,7]
[332611482,1721344252260,-166.715702,0.00028,7]
[332611483,1721344252270,-166.715702,0.00028,7]
[332611484,1721344252279,-151.0,0.00028,7]
[332611485,1721344252288,-151.0,0.00028,7]
[332611486,1721344252298,-166.715702,0.00028,7]
[332611487,1721344252307,-166.715702,0.00028,7]
[332611488,1721344252317,-151.0,0.00028,7]
[332611489,1721344252326,-151.0,0.00028,7]
[332611490,1721344252335,-151.0,0.00028,7]
[332611491,1721344252345,-151.0,0.00028,7]
[332611492,1721344252354,-151.0,0.00028,7]
[332611493,1721344252364,-151.0,0.00028,7]
[332611494,1721344252373,-151.0,0.00028,7]
[332611495,1721344252383,-151.0,0.00028,7]
[332611496,1721344252393,-347.768377,0.00028,7]
[332611497,1721344252402,-347.768377,0.00028,7]
[332611498,1721344252415,-151.0,0.00028,7]
[332611499,1721344252426,-151.0,0.00028,7]
[332611500,1721344252435,-156.9,0.00028208,3]
[332611501,1721344252445,-1000.0,0.00028209,2]
[332611502,1721344252456,-2600.0,0.00028218,2]
[332611503,1721344252467,-2800.0,0.00028218,2]
[332611504,1721344252477,-348.705359,0.00028219,14]
[332611505,1721344252490,-28625.96368509,0.00028364,2]
[332611506,1721344252501,-155.29917121,0.00028371,2]
[332611507,1721344252510,-351.15,0.00028426,2]
[332611508,1721344252520,-206.0,0.0002853,2]
[332611509,1721344252529,-152.38095239,0.00028581,2]
[332611510,1721344252539,-153.33226061,0.00028614,2]
[332611511,1721344252549,-500.0,0.00028766,2]
[332611512,1721344252558,-900.0,0.00028766,2]
[332611513,1721344252567,-800.0,0.00028766,2]
[332611514,1721344252578,-150.0,0.00028767,2]
[332611515,1721344252587,-355.81931107,0.00028821,2]
[332611516,1721344252597,-150.0,0.00028873,2]
[332611517,1721344252608,-500.0,0.00029,2]
[332611518,1721344252617,-348.705359,0.00029041,14]
[332611519,1721344252627,-206.0,0.0002912,2]
[332611520,1721344252637,-347.98,0.00029151,2]
[332611521,1721344252647,-157.30273304,0.00029172,2]
[332611522,1721344252657,-2600.0,0.00029314,2]
[332611523,1721344252666,-2800.0,0.00029314,2]
[332611524,1721344252676,-5117.0,0.00029562,2]
[332611525,1721344252686,-5364.069,0.00029562,2]
[332611526,1721344252697,-25171.929,0.00029562,2]
[332611527,1721344252707,-156.9,0.00029566,4]
[332611528,1721344252718,-400.0,0.00029614,120]
[332611529,1721344252728,-206.0,0.000297,2]
[332611530,1721344252738,-208.0,0.000297,30]
[332611531,1721344252748,-890.40343046,0.00029762,2]
[332611532,1721344252758,-2612.81200525,0.000298,2]
[332611533,1721344252767,-1063.01251185,0.00029808,2]
[332611534,1721344252777,-151.0,0.0002981,7]
[332611535,1721344252787,-151.0,0.0002981,7]
[332611536,1721344252796,-151.0,0.0002981,7]
[332611537,1721344252806,-151.0,0.0002981,7]
[332611538,1721344252816,-91866.55376925,0.00029811,7]
[332611539,1721344253571,-2295.6112263,0.00029811,7]
[332611540,1721344253584,-335.55999996,0.00029811,7]
[332611541,1721344253596,-2421.6,0.00029811,7]
[332611542,1721344254143,-500.0,0.00025,2]
[332611543,1721344254154,-500.0,0.00025,2]
[332611544,1721344254164,-104.77410387,0.00025,2]
[332611545,1721344254176,-395.22589613,0.00025,2]
[332611546,1721344254186,-500.0,0.00025,2]
[332611547,1721344254196,-500.0,0.00025,2]
[332611548,1721344254205,-150.0,0.00025315,2]
[332611549,1721344254217,-1034.05360558,0.00027956,21]
[332611550,1721344254229,-939.883994,0.00027956,21]
[332611551,1721344254261,-500.0,0.00025,2]
[332611552,1721344254271,-277.38,0.00027956,21]
[332611553,1721344254302,-952621.53879016,0.00027956,21]
[332611554,1721344254312,-151.0,0.00027956,7]
[332611555,1721344254322,-151.0,0.00028,7]
[332611556,1721344254332,-210813.64850812,0.00029811,7]
[332611557,1721344254344,-922.42628103,0.00029811,7]
[332611570,1721344975962,2820.12,0.0002,10]
[332611572,1721345118917,150.0,9e-05,2]
[332611573,1721345118940,150.0,9e-05,2]
[332611574,1721345118963,150.0,9e-05,2]
[332611575,1721345118986,108.82358749,9e-05,2]
[332611576,1721345188599,150.0,0.00010909,2]
[332611577,1721345188624,150.0,0.00010909,2]
[332611578,1721345188646,112.28579366,0.00010909,2]
[332611583,1721345219501,267.58574982,0.00015,14]
[332611614,1721345431751,-290.89568695,0.0001386,2]
[332611615,1721345431815,-448.08687165,0.0001386,2]
[332611616,1721345431827,-19.0174414,0.0001386,2]
[332611617,1721345431840,-300.0,0.00013936,2]
[332611618,1721345431851,-9.3125586,0.00013937,2]
[332611619,1721345431863,-428.32614833,0.00013937,2]
[332611620,1721345431977,-410.18929971,0.00013937,2]
[332611621,1721345431989,-489.12056537,0.00013937,2]
[332611622,1721345431999,-306.49459695,0.00013937,2]
[332611623,1721345432009,-150.0,0.00013989,2]
[332611624,1721345432019,-859.50391827,0.00013989,2]
[332611625,1721345432028,-38047.51920341,0.0001399,2]
[332611626,1721345432039,-5223.20147579,0.0001399,2]
[332611627,1721345432049,-159.07,0.0001399,2]
[332611628,1721345432059,-159.07,0.0001399,2]
[332611629,1721345432069,-159.07,0.0001399,2]
[332611630,1721345432079,-159.07,0.0001399,2]
[332611631,1721345432088,-159.07,0.0001399,2]
[332611632,1721345432098,-159.07,0.0001399,2]
[332611633,1721345432107,-159.07,0.0001399,2]
[332611635,1721345432117,-159.07,0.0001399,2]
[332611636,1721345432127,-152.42858912,0.0001399,2]
[332611638,1721345432136,-279.36824228,0.00013999,2]
[332611639,1721345432146,-500.0,0.00013999,2]
[332611640,1721345432156,-500.0,0.00013999,2]
[332611641,1721345432166,-500.0,0.00013999,2]
[332611642,1721345432176,-480.30738567,0.00013999,2]
[332611643,1721345432186,-500.0,0.00013999,2]
[332611644,1721345432196,-500.0,0.00013999,2]
[332611645,1721345432206,-500.0,0.00013999,2]
[332611646,1721345432216,-300.0,0.00013999,2]
[332611647,1721345432227,-2508656.27594615,0.00014,2]
[332611648,1721345432238,-3955.96712328,0.00014,2]
[332611649,1721345432272,-1010.84700863,0.00014,2]
[332611650,1721345432284,-957.39209914,0.00014,2]
[332611651,1721345432296,-620.99,0.00014,2]
[332611652,1721345432312,-32420.25859393,0.00014,2]
[332611653,1721345432323,-2271.21909721,0.00014,2]
[332611654,1721345432334,-25605.72422148,0.00014,2]
[332611655,1721345432345,-19556.08916518,0.00014,2]
[332611656,1721345432356,-345415.0607539,0.00014,2]
[332611657,1721345432372,-857.30470671,0.00014,2]
[332611658,1721345432383,-4167.37317591,0.00014,2]
[332611659,1721345432396,-6047.99301454,0.00014,2]
[332611661,1721345437875,-198.96306483,0.00013937,2]
[332611662,1721345437885,-310.83,0.00013989,2]
[332611663,1721345437895,-310.83,0.0001399,2]
[332611664,1721345437905,-310.83,0.0001399,2]
[332611665,1721345437914,-310.83,0.0001399,2]
[332611666,1721345437924,-310.83,0.0001399,2]
[332611667,1721345437933,-310.83,0.0001399,2]
[332611668,1721345437943,-310.83,0.0001399,2]
[332611669,1721345437954,-310.83,0.0001399,2]
[332611670,1721345437964,-310.83,0.0001399,2]
[332611671,1721345437974,-7441.08758298,0.00013997,2]
[332611672,1721345437984,-11405.2881459,0.00014,2]
[332611673,1721345438147,-30286.63931483,0.00014,2]
[332611674,1721345438159,-26718.03744393,0.00014,2]
[332611791,1721345439868,-310.83,0.0001399,2]
[332611792,1721345439878,-310.83,0.0001399,2]
[332611793,1721345439888,-310.83,0.0001399,2]
[332611794,1721345439898,-310.83,0.0001399,2]
[332611795,1721345439908,-310.83,0.0001399,2]
[332611796,1721345439917,-310.83,0.0001399,2]
[332611797,1721345439928,-310.83,0.0001399,2]
[332611798,1721345439938,-310.83,0.0001399,2]
[332611799,1721345439948,-310.83,0.0001399,2]
[332611800,1721345439958,-409418.85879213,0.00014,2]
[332611801,1721345439994,-548.94403522,0.00014,2]
[332611802,1721345440010,-819.68910007,0.00014,2]
[332611847,1721345442794,-310.83,0.0001399,2]
[332611848,1721345442804,-310.83,0.0001399,2]
[332611849,1721345442813,-310.83,0.0001399,2]
[332611850,1721345442823,-310.83,0.0001399,2]
[332611851,1721345442833,-310.83,0.0001399,2]
[332611852,1721345442844,-310.83,0.0001399,2]
[332611853,1721345442853,-310.83,0.0001399,2]
[332611854,1721345442862,-310.83,0.0001399,2]
[332611855,1721345442873,-310.83,0.0001399,2]
[332611856,1721345442882,-310.83,0.0001399,2]
[332611857,1721345442892,-310.83,0.0001399,2]
[332611858,1721345442901,-310.83,0.0001399,2]
[332611859,1721345442913,-310.83,0.0001399,2]
[332611860,1721345442922,-328557.41986606,0.00014,2]
[332611863,1721345443692,-747.85523931,0.00014,2]
[332611864,1721345443706,-1243.6415,0.00014,2]
[332611865,1721345443719,-16183.93104,0.00014,2]
[332611867,1721345443731,-976.20732012,0.00014,2]
[332611869,1721345443749,-926.8666377,0.00014,2]
[332611870,1721345443760,-2093.79820878,0.00014,2]
[332611871,1721345443772,-616.45468681,0.00014,2]
[332611872,1721345443784,-205878.76281222,0.00014,2]
[332611873,1721345443795,-33756.22282231,0.00014,2]
[332611878,1721345445891,-310.83,0.0001399,2]
[332611879,1721345445900,-294.84764587,0.0001399,2]
[332611880,1721345445912,-15.98235413,0.0001399,2]
[332611881,1721345445922,-310.83,0.0001399,2]
[332611882,1721345445932,-310.83,0.0001399,2]
[332611883,1721345445942,-310.83,0.0001399,2]
[332611884,1721345445952,-310.83,0.0001399,2]
[332611885,1721345445962,-310.83,0.0001399,2]
[332611886,1721345445972,-310.83,0.0001399,2]
[332611887,1721345445982,-715427.27024082,0.00014,2]
[332611889,1721345446806,-3499.87252233,0.00014,2]
[332611890,1721345446847,-310.83,0.0001399,2]
[332611891,1721345446856,-464841.45423247,0.00014,2]
[332611892,1721345446868,-2536.20892993,0.00014,2]
[332611893,1721345446879,-1898.23381044,0.00014,2]
[332611894,1721345446928,-310.83,0.0001399,2]
[332611895,1721345446938,-292.29307284,0.00014,2]
[332611914,1721346324394,314.03,0.00011021,2]
[332611915,1721346355876,500.0,0.00025,120]
[332611957,1721346632043,-250.0,0.00012681,2]
[332611958,1721346632054,-7396.98285621,0.00012682,2]
[332611959,1721346632078,-633.6425639,0.00012682,2]
[332611960,1721346632089,-5669.67267634,0.00012682,2]
[332611961,1721346632105,-10169.70190355,0.00012682,2]
[332611962,1721346632114,-150.0,0.00012726,2]
[332611963,1721346632124,-5700.42073939,0.00012739,2]
[332611964,1721346632133,-168.73,0.00012739,2]
[332611965,1721346632143,-176.55,0.00012741,2]
[332611966,1721346632152,-1961.68,0.0001285,2]
[332611967,1721346632161,-500.0,0.00012854,2]
[332611968,1721346632171,-352.0,0.00012884,2]
[332611970,1721346632438,-335.15,0.00013018,2]
[332611971,1721346632449,-765.81,0.00013047,2]
[332611972,1721346632458,-314.03,0.00013285,2]
[332611973,1721346632467,-1320.04022117,0.00013297,2]
[332611974,1721346632479,-528.72,0.00013297,2]
[332611975,1721346632523,-1534.0041449,0.00013297,2]
[332611976,1721346632532,-150.0,0.00013425,2]
[332611977,1721346632541,-250.0,0.00013451,2]
[332611978,1721346632550,-150.0,0.00013488,2]
[332611979,1721346632559,-681.8928407,0.00013489,2]
[332611980,1721346632585,-9318.0971593,0.00013489,2]
[332611981,1721346632594,-165.79,0.00013489,2]
[332611982,1721346632603,-238.04,0.00013678,2]
[332611983,1721346632612,-946.51709938,0.00013689,2]
[332611984,1721346632625,-1671.46670062,0.00013689,2]
[332611985,1721346632634,-238.04,0.00013689,2]
[332611986,1721346632643,-238.04,0.00013689,2]
[332611987,1721346632652,-238.04,0.00013689,2]
[332611988,1721346632661,-346.91,0.00013699,2]
[332611989,1721346632671,-200.0,0.00013699,2]
[332611990,1721346632680,-85.86290846,0.00013699,2]
[332611991,1721346632691,-94.04709154,0.00013699,2]
[332611992,1721346632700,-387.94145324,0.00013699,2]
[332612005,1721346637888,-688.35,0.00012626,2]
[332612006,1721346637943,-394.81222346,0.00012626,2]
[332612007,1721346637957,-4366.07284405,0.00012626,2]
[332612008,1721346637998,-2775.12811207,0.00012626,2]
[332612009,1721346638007,-112.05854676,0.00013699,2]
[332612010,1721346638016,-44.69229117,0.00013699,2]
[332612011,1721346638028,-205.30770883,0.00013699,2]
[332612012,1721346638037,-3980.96811895,0.00013699,2]
[332612013,1721346638060,-404.64145571,0.00013699,2]
[332612014,1721346638072,-556.38,0.00013699,2]
[332612015,1721346638083,-3307.88042534,0.00013699,2]
[332612016,1721346638092,-648.70102982,0.00013788,2]
[332612017,1721346638102,-238.04,0.00013789,2]
[332612018,1721346638112,-238.04,0.0001379,2]
[332612019,1721346638122,-238.04,0.0001379,2]
[332612020,1721346638131,-238.04,0.0001379,2]
[332612021,1721346638141,-238.04,0.0001379,2]
[332612022,1721346638150,-238.04,0.0001379,2]
[332612023,1721346638161,-238.44306856,0.00013797,2]
[332612024,1721346638170,-160.78,0.00013798,2]
[332612025,1721346638182,-3250.9844,0.00013799,2]
[332612026,1721346638191,-968.7170366,0.00013799,2]
[332612027,1721346638200,-1550.96317916,0.000138,2]
[332612029,1721346638222,-955.690019,0.000138,2]
[332612041,1721346639946,-1301.90749695,0.000138,2]
[332612042,1721346639959,-2776.36303042,0.000138,2]
[332612043,1721346640209,-634.17697447,0.000138,2]
[332612044,1721346640219,-177.5368,0.000138,2]
[332612045,1721346640229,-2500.0,0.000138,2]
[332612046,1721346640238,-615.5753,0.000138,2]
[332612047,1721346640247,-23.11721414,0.000138,2]
[332612048,1721346640258,-2435.38767799,0.000138,2]
[332612049,1721346640269,-2088.0195326,0.000138,2]
[332612050,1721346640278,-602.7287,0.000138,2]
[332612051,1721346640287,-238.04,0.00013849,2]
[332612052,1721346640297,-238.04,0.0001385,2]
[332612053,1721346640306,-143.47942578,0.0001385,2]
[332612055,1721346640333,-94.56057422,0.0001385,2]
[332612056,1721346640343,-238.04,0.0001385,2]
[332612058,1721346640353,-238.04,0.0001385,2]
[332612060,1721346640363,-916.5895,0.0001386,2]
[332612062,1721346640372,-238.04,0.0001387,2]
[332612064,1721346640382,-238.04,0.0001388,2]
[332612066,1721346640392,-238.04,0.0001388,2]
[332612068,1721346640402,-238.04,0.0001388,2]
[332612070,1721346640414,-1000.0,0.0001388,2]
[332612072,1721346640426,-87.02812388,0.00013889,2]
[332612077,1721346640460,-151.01187612,0.00013889,2]
[332612078,1721346640470,-431.70678588,0.00013889,2]
[332612080,1721346640479,-238.04,0.0001389,2]
[332612082,1721346640488,-238.04,0.0001389,2]
[332612084,1721346640498,-238.04,0.0001389,2]
[332612086,1721346640507,-238.04,0.0001389,2]
[332612088,1721346640516,-238.04,0.0001389,2]
[332612090,1721346640526,-238.04,0.0001389,2]
[332612092,1721346640535,-238.04,0.0001389,2]
[332612095,1721346640545,-238.04,0.0001389,2]
[332612097,1721346640554,-238.04,0.0001389,2]
[332612099,1721346640563,-238.04,0.0001389,2]
[332612101,1721346640572,-238.04,0.0001389,2]
[332612103,1721346640581,-238.04,0.0001389,2]
[332612104,1721346640590,-238.04,0.0001389,2]
[332612107,1721346640600,-238.04,0.0001389,2]
[332612109,1721346640609,-238.04,0.0001389,2]
[332612111,1721346640618,-238.04,0.0001389,2]
[332612113,1721346640627,-238.04,0.0001389,2]
[332612115,1721346640636,-238.04,0.0001389,2]
[332612116,1721346640646,-238.04,0.0001389,2]
[332612118,1721346640656,-238.04,0.0001389,2]
[332612120,1721346640665,-238.04,0.0001389,2]
[332612122,1721346640675,-238.04,0.0001389,2]
[332612124,1721346640684,-238.04,0.0001389,2]
[332612126,1721346640693,-238.04,0.0001389,2]
[332612128,1721346640703,-238.04,0.0001389,2]
[332612130,1721346640712,-238.04,0.0001389,2]
[332612132,1721346640722,-238.04,0.0001389,2]
[332612134,1721346640732,-238.04,0.0001389,2]
[332612136,1721346640741,-238.04,0.0001389,2]
[332612138,1721346640751,-238.04,0.0001389,2]
[332612140,1721346640760,-7648.5818,0.0001389,2]
[332612142,1721346640769,-4120.0732,0.0001389,2]
[332612144,1721346640778,-500.0,0.000139,2]
[332612146,1721346640787,-100000.0,0.000139,2]
[332612148,1721346640798,-174.90879013,0.000139,2]
[332612150,1721346640808,-300.0,0.00013936,2]